bitfinex-derivatives/quotes_SOLF0:USTF0_20260305
["timestamp","ask_amount","ask_price","bid_price","bid_amount"]
[1772668802694,6.44794617,90.878,90.758,6.40782146]
[1772668803496,6.44794617,91.343,90.758,6.40782146]
[1772668803795,6.44794617,90.902,90.758,6.40782146]
[1772668804298,6.44794617,90.89,90.737,154.268]
[1772668804500,6.44794617,90.89,90.759,6.40782146]
[1772668804699,6.44794617,90.89,90.771,154.21]
[1772668804900,6.44794617,90.89,90.772,6.40782146]
[1772668805099,6.44794617,90.89,90.831,6.40782146]
[1772668806002,6.44794617,90.89,90.851,0.08349371]
[1772668806897,6.44794617,90.887,90.851,0.08349371]
[1772668807096,0.08164994,90.88,90.815,6.40782146]
[1772668807301,6.44794617,90.879,90.815,6.40782146]
[1772668807597,6.44794617,90.864,90.799,9.91]
[1772668807899,6.44794617,90.864,90.8,6.40782146]
[1772668808402,0.08415784,90.841,90.8,6.40782146]
[1772668810398,0.08415784,90.841,90.809,9.909]
[1772668810599,0.08415784,90.841,90.81,6.40782146]
[1772668811102,6.44794617,90.864,90.81,6.40782146]
[1772668811302,9.901,90.881,90.832,6.40782146]
[1772668811806,6.44794617,90.886,90.832,6.40782146]
[1772668812004,6.44794617,90.886,90.842,6.40782146]
[1772668812198,6.44794617,90.933,90.842,6.40782146]
[1772668812502,6.44794617,90.933,90.837,6.40782146]
[1772668812902,6.44794617,90.919,90.878,0.07085682]
[1772668813399,6.44794617,90.919,90.859,6.40782146]
[1772668813801,6.44794617,90.919,90.889,0.07399588]
[1772668815606,6.44794617,90.919,90.854,6.40782146]
[1772668815803,0.07253179,90.913,90.854,6.40782146]
[1772668816106,6.44794617,90.908,90.854,6.40782146]
[1772668816502,9.899,90.898,90.795,6.40782146]
[1772668816701,6.44794617,90.897,90.828,6.40782146]
[1772668817508,6.44794617,90.897,90.853,0.07425848]
[1772668818513,16.34794617,90.896,90.853,0.07425848]
[1772668819111,16.34794617,90.896,90.845,6.08367481]
[1772668819413,16.34794617,90.896,90.849,6.08367481]
[1772668819909,16.34794617,90.896,90.861,0.07377865]
[1772668820210,9.9,90.888,90.861,0.07377865]
[1772668820508,6.44794617,90.896,90.818,6.08367481]
[1772668820711,6.08042562,90.887,90.818,6.08367481]
[1772668821208,6.08042562,90.877,90.818,6.08367481]
[1772668821816,0.07164916,90.857,90.818,6.08367481]
[1772668823216,0.07164916,90.857,90.82,9.908]
[1772668823415,0.07164916,90.857,90.77,6.08367481]
[1772668823915,6.08042562,90.863,90.77,6.08367481]
[1772668824316,0.07508354,90.823,90.77,6.08367481]
[1772668824517,6.08042562,90.863,90.809,6.08367481]
[1772668825218,19.791,90.936,90.813,6.08367481]
[1772668825219,6.08042562,90.878,90.813,6.08367481]
[1772668825818,6.08042562,90.878,90.836,0.07613677]
[1772668826518,6.08042562,90.894,90.836,6.15981158]
[1772668826719,153.879,90.967,90.836,6.15981158]
[1772668826720,6.08042562,90.96,90.836,6.15981158]
[1772668827122,6.08042562,90.96,90.854,6.68272817]
[1772668827322,6.08674007,90.928,90.854,6.68272817]
[1772668827925,6.08674007,90.926,90.854,6.68272817]
[1772668828119,6.08674007,90.926,90.882,0.07241727]
[1772668829424,6.08674007,90.922,90.882,0.07241727]
[1772668829925,6.08674007,90.922,90.86,6.68272817]
[1772668830325,6.08674007,90.907,90.828,6.68272817]
[1772668830831,6.08674007,90.907,90.882,0.07242524]
[1772668831121,6.08674007,90.907,90.852,6.68272817]
[1772668831429,6.08674007,90.907,90.859,9.903]
[1772668831623,6.08674007,90.907,90.87,0.07138663]
[1772668832626,9.897,90.916,90.87,0.07138663]
[1772668832826,6.08674007,90.923,90.87,0.07138663]
[1772668833528,6.08674007,90.923,90.874,6.68272817]
[1772668834319,6.08674007,90.923,90.876,16.58472817]
[1772668835231,6.08674007,90.923,90.89,0.07004816]
[1772668837932,6.08674007,90.92,90.89,0.07004816]
[1772668838432,6.08674007,90.92,90.864,9.903]
[1772668838929,6.08674007,90.92,90.896,0.07388238]
[1772668842238,6.08674007,90.929,90.896,0.07388238]
[1772668842438,9.896,90.928,90.896,0.07388238]
[1772668844248,6.08674007,90.927,90.896,0.07388238]
[1772668845744,9.895,90.936,90.896,0.07388238]
[1772668845946,15.98174007,90.936,90.896,0.07388238]
[1772668846750,6.08674007,90.935,90.896,0.07388238]
[1772668848246,9.894,90.945,90.896,6.75661055]
[1772668848543,6.54977518,90.944,90.896,6.75661055]
[1772668848749,6.54977518,90.944,90.881,6.46692143]
[1772668848949,9.895,90.933,90.889,9.9]
[1772668849653,9.895,90.941,90.902,0.07612748]
[1772668850351,16.44477518,90.941,90.902,0.07612748]
[1772668850951,9.895,90.936,90.902,0.07612748]
[1772668851548,9.895,90.936,90.889,9.9]
[1772668851850,6.54977518,90.933,90.889,9.9]
[1772668852050,6.54977518,90.933,90.882,9.901]
[1772668852251,6.54977518,90.933,90.903,0.07560667]
[1772668859959,16.44477518,90.933,90.903,0.07560667]
[1772668860359,6.54977518,90.932,90.903,0.07560667]
[1772668860867,6.54977518,90.926,90.867,6.46692143]
[1772668861159,6.54977518,90.926,90.822,19.815]
[1772668861360,6.54977518,90.904,90.854,6.46692143]
[1772668861658,6.54977518,90.992,90.854,6.46692143]
[1772668861851,6.54977518,90.932,90.88,6.46692143]
[1772668862354,0.08334424,90.888,90.842,6.46692143]
[1772668862654,6.54977518,90.902,90.862,9.903]
[1772668863052,0.07037936,90.874,90.862,9.903]
[1772668863258,0.07037936,90.874,90.842,6.46692143]
[1772668863259,0.07037936,90.874,90.853,9.904]
[1772668865361,0.07037936,90.874,90.845,9.905]
[1772668866866,0.07037936,90.874,90.852,9.904]
[1772668867064,0.07037936,90.874,90.842,6.46692143]
[1772668867365,6.54977518,90.902,90.842,6.46692143]
[1772668867861,6.54977518,90.902,90.867,9.903]
[1772668868166,6.54977518,90.957,90.854,6.46692143]
[1772668868665,6.54977518,90.952,90.885,6.46692143]
[1772668869169,6.54977518,90.952,90.9,6.46692143]
[1772668870366,6.54977518,90.95,90.902,9.899]
[1772668871669,6.54977518,90.95,90.917,0.07017213]
[1772668872164,6.54977518,90.984,90.918,6.46692143]
[1772668872766,6.54977518,90.983,90.92,6.46692143]
[1772668873068,6.54977518,90.983,90.942,0.06927453]
[1772668873261,6.54977518,90.983,90.847,154.081]
[1772668873262,6.54977518,90.983,90.904,6.46692143]
[1772668873462,6.54977518,90.96,90.857,6.46692143]
[1772668873870,6.54977518,90.949,90.887,6.46692143]
[1772668874564,6.54977518,90.947,90.887,6.46692143]
[1772668874771,0.0748771,90.927,90.887,6.46692143]
[1772668886382,0.0748771,90.927,90.889,6.48534638]
[1772668886882,9.896,90.932,90.889,6.48534638]
[1772668887282,0.07061639,90.917,90.889,6.48534638]
[1772668889184,6.24566434,90.954,90.898,6.48534638]
[1772668890081,6.24566434,90.954,90.914,9.897]
[1772668892786,6.24566434,90.954,90.915,6.48534638]
[1772668893286,6.24566434,90.967,90.915,6.48534638]
[1772668893890,6.24566434,90.967,90.932,0.07114142]
[1772668894287,9.892,90.966,90.932,0.07114142]
[1772668895293,6.24566434,90.965,90.932,0.07114142]
[1772668896897,6.24566434,90.979,90.932,6.5564878]
[1772668897395,6.24566434,90.979,90.94,9.895]
[1772668897797,6.24566434,90.979,90.946,0.07070265]
[1772668899697,9.889,90.988,90.946,0.07070265]
[1772668899888,6.24566434,90.987,90.946,0.07070265]
[1772668900094,6.24566434,90.987,90.949,6.48534638]
[1772668900296,6.24566434,91.0,90.949,6.48534638]
[1772668901199,6.24566434,91.0,90.965,0.06966028]
[1772668901398,9.889,90.992,90.965,0.06966028]
[1772668902097,6.24566434,91.0,90.965,0.06966028]
[1772668903401,6.24566434,90.998,90.965,0.06966028]
[1772668903904,6.24566434,90.998,90.949,6.48534638]
[1772668905304,16.13366434,90.998,90.949,6.48534638]
[1772668905503,6.24566434,90.997,90.949,6.48534638]
[1772668905999,6.24566434,90.997,90.964,0.07002519]
[1772668908008,6.24566434,91.04,90.986,6.48534638]
[1772668909307,9.884,91.039,91.004,0.07098024]
[1772668909804,6.61065642,91.038,91.004,0.07098024]
[1772668912104,9.884,91.037,91.004,0.07098024]
[1772668912809,16.49465642,91.037,91.004,0.07098024]
[1772668913107,6.61065642,91.037,91.004,0.07098024]
[1772668913706,6.61065642,91.053,91.005,6.55577411]
[1772668914006,6.61065642,91.115,91.005,6.55577411]
[1772668914309,6.61065642,91.094,91.005,6.55577411]
[1772668914910,6.61065642,91.087,91.03,6.55577411]
[1772668915409,6.61065642,91.087,91.049,0.06994545]
[1772668916411,6.61065642,91.085,91.049,0.06994545]
[1772668916909,6.61065642,91.085,91.03,6.55577411]
[1772668917310,9.879,91.084,91.058,0.07131693]
[1772668917804,6.61065642,91.085,91.058,0.07131693]
[1772668919612,6.61065642,91.093,91.058,0.07131693]
[1772668920113,6.61065642,91.093,91.055,6.55577411]
[1772668920412,9.878,91.092,91.055,6.55577411]
[1772668921112,6.61065642,91.093,91.055,6.55577411]
[1772668921313,6.61065642,91.134,91.055,6.55577411]
[1772668922314,6.61065642,91.109,91.037,6.55577411]
[1772668923213,6.61065642,91.109,91.064,0.06920679]
[1772668923416,6.61065642,91.091,91.064,0.06920679]
[1772668924113,9.88,91.079,91.037,6.55577411]
[1772668924313,6.61065642,91.078,91.019,6.55577411]
[1772668924514,6.61065642,91.078,91.003,6.55577411]
[1772668924714,6.61065642,91.048,90.917,6.55577411]
[1772668924915,6.61065642,91.048,90.936,6.55577411]
[1772668925214,6.61065642,91.048,90.937,6.55577411]
[1772668926512,9.884,91.038,90.98,6.55577411]
[1772668927213,9.884,91.038,90.991,9.889]
[1772668927415,9.884,91.038,90.992,6.55577411]
[1772668930722,6.61065642,91.032,90.978,6.55577411]
[1772668931521,6.61065642,91.026,90.978,6.55577411]
[1772668932124,9.886,91.016,90.978,6.55577411]
[1772668932423,6.61065642,91.015,90.912,6.55577411]
[1772668933319,9.888,91.004,90.951,6.55577411]
[1772668933823,16.49865642,91.004,90.951,6.55577411]
[1772668934228,6.61065642,91.001,90.951,6.55577411]
[1772668935126,6.61065642,91.001,90.967,0.06975347]
[1772668935425,9.888,90.998,90.967,0.06975347]
[1772668939028,16.67371821,90.998,90.967,0.06975347]
[1772668939220,9.889,90.992,90.967,0.06975347]
[1772668939424,153.718,91.062,90.912,6.2567693]
[1772668939425,6.78571821,90.991,90.912,6.2567693]
[1772668940435,6.78571821,90.979,90.931,9.896]
[1772668940727,0.08225739,90.961,90.925,6.2567693]
[1772668941426,6.78571821,90.997,90.925,6.2567693]
[1772668942330,6.78571821,90.987,90.932,6.2567693]
[1772668942930,6.78571821,90.987,90.934,6.2567693]
[1772668943630,9.89,90.986,90.939,9.895]
[1772668944433,9.89,90.986,90.953,0.07031613]
[1772668945832,153.718,91.062,90.953,0.07031613]
[1772668945833,6.78571821,91.004,90.953,6.32708543]
[1772668946335,6.78571821,91.004,90.953,6.2567693]
[1772668946835,9.888,90.997,90.953,6.2567693]
[1772668947134,9.888,90.997,90.969,0.07007112]
[1772668948138,6.78571821,91.004,90.969,0.07007112]
[1772668951345,6.87299283,91.018,90.971,6.29838998]
[1772668951545,6.87299283,91.031,90.971,6.29838998]
[1772668952040,6.87299283,91.031,90.987,6.29838998]
[1772668952345,6.87299283,91.031,90.95,6.29838998]
[1772668952843,6.87299283,91.071,90.981,6.29838998]
[1772668953243,6.87299283,91.07,90.981,6.29838998]
[1772668953438,9.884,91.039,90.995,9.889]
[1772668953944,6.87299283,91.038,90.995,9.889]
[1772668954946,6.87299283,91.038,91.007,0.07153171]
[1772668955644,6.87299283,91.094,91.007,6.36992169]
[1772668956146,6.87299283,91.068,91.025,9.885]
[1772668956342,6.87299283,91.068,91.026,6.29838998]
[1772668956945,6.87299283,91.068,91.038,0.07063266]
[1772668960055,16.75299283,91.075,91.038,0.07063266]
[1772668960450,6.87299283,91.074,91.038,0.07063266]
[1772668960655,6.87299283,91.074,91.026,6.29838998]
[1772668961363,6.87299283,91.065,90.996,6.29838998]
[1772668961556,6.87299283,91.058,90.996,6.29838998]
[1772668961755,0.07517752,91.059,91.026,16.18338998]
[1772668962053,6.87299283,91.073,91.027,6.29838998]
[1772668962862,0.0719877,91.059,91.027,6.29838998]
[1772668963260,6.87299283,91.058,90.971,6.29838998]
[1772668964060,6.87299283,91.055,90.998,6.29838998]
[1772668964363,0.06942645,91.024,90.998,6.29838998]
[1772668964862,0.06942645,91.024,90.947,6.29838998]
[1772668965357,6.87299283,91.038,90.985,9.89]
[1772668965561,6.87299283,91.083,90.986,6.29838998]
[1772668965765,6.87299283,91.058,90.999,6.29838998]
[1772668966164,0.08450066,91.044,90.999,6.29838998]
[1772668966664,0.08450066,91.044,91.008,6.29838998]
[1772668967163,9.882,91.057,91.008,6.29838998]
[1772668967761,9.881,91.066,91.012,6.29838998]
[1772668967961,9.881,91.066,91.023,0.0718428]
[1772668968164,9.881,91.066,91.023,6.37023278]
[1772668968662,9.88,91.074,91.023,6.37023278]
[1772668969164,9.88,91.074,91.023,6.29838998]
[1772668969466,6.64825733,91.073,91.023,6.29838998]
[1772668969665,6.64825733,91.073,91.039,0.07525819]
[1772668970565,9.881,91.064,91.039,0.07525819]
[1772668971766,6.64825733,91.073,91.023,6.29838998]
[1772668971767,9.882,91.057,91.023,6.29838998]
[1772668973363,0.07315808,91.061,91.023,6.29838998]
[1772668974363,0.07315808,91.061,91.034,9.884]
[1772668974567,0.07315808,91.061,91.023,6.29838998]
[1772668975263,0.07315808,91.061,91.034,9.884]
[1772668976562,6.64825733,91.058,90.966,6.50657577]
[1772668977357,6.64825733,91.058,91.016,9.886]
[1772668977969,6.64825733,91.058,91.017,6.50657577]
[1772668978971,6.64825733,91.058,91.028,0.07365421]
[1772668979172,6.64825733,91.056,91.008,9.887]
[1772668979369,6.64825733,91.046,91.0,6.50657577]
[1772668979769,6.64825733,91.046,91.01,9.887]
[1772668980072,6.64825733,91.046,91.0,6.50657577]
[1772668981375,6.64825733,91.046,91.002,9.888]
[1772668981567,6.64825733,91.046,91.003,6.50657577]
[1772668983477,9.883,91.045,91.006,9.887]
[1772668986277,6.64825733,91.046,91.006,9.887]
[1772668986278,6.64825733,91.046,91.007,6.50657577]
[1772668986479,0.07395756,91.047,91.007,6.50657577]
[1772668986975,0.07395756,91.047,91.009,6.50657577]
[1772668987571,9.882,91.053,91.009,6.50657577]
[1772668987973,0.07217703,91.037,91.009,6.50657577]
[1772668988169,0.07217703,91.037,91.012,16.39357577]
[1772668988374,0.07217703,91.037,91.013,6.50657577]
[1772668988769,9.882,91.053,91.013,6.50657577]
[1772668989170,0.07628585,91.034,91.013,6.50657577]
[1772668991984,0.07628585,91.034,91.005,9.888]
[1772668992183,0.07628585,91.034,91.0,6.50657577]
[1772668992479,0.07628585,91.034,90.998,9.888]
[1772668993281,0.07628585,91.034,91.003,6.50657577]
[1772668993777,9.883,91.046,91.003,6.50657577]
[1772668994288,0.07187338,91.028,91.01,9.887]
[1772668994484,0.07187338,91.028,91.003,6.50657577]
[1772668995387,0.07187338,91.028,91.003,16.39457577]
[1772668997589,0.07187338,91.028,91.004,6.50657577]
[1772668997791,0.07187338,91.028,91.007,6.50657577]
[1772668998289,9.883,91.048,91.007,6.50657577]
[1772668998690,0.08143537,91.027,91.007,6.50657577]
[1772668999089,0.08143537,91.027,91.014,9.887]
[1772668999291,9.882,91.056,91.015,6.19806318]
[1772668999785,6.62392281,91.049,91.009,9.887]
[1772668999984,6.62392281,91.049,91.01,6.19806318]
[1772669000588,6.62392281,91.062,91.02,0.07808507]
[1772669001095,6.62392281,91.062,91.012,6.19806318]
[1772669001392,9.883,91.052,91.012,6.19806318]
[1772669001590,9.883,91.052,91.032,0.079581]
[1772669003689,9.882,91.059,91.032,0.079581]
[1772669005394,16.50592281,91.059,91.032,0.079581]
[1772669006091,9.882,91.055,91.032,0.079581]
[1772669006297,6.36268403,91.054,91.032,0.079581]
[1772669006801,6.36268403,91.054,91.012,6.19806318]
[1772669007096,6.36268403,91.054,91.034,0.08005218]
[1772669007493,9.882,91.053,91.034,0.08005218]
[1772669007796,6.36268403,91.052,91.034,0.08005218]
[1772669007995,6.36268403,91.049,91.034,0.08005218]
[1772669008289,6.36268403,91.049,91.012,6.19806318]
[1772669008497,9.883,91.048,91.013,9.887]
[1772669008690,9.883,91.048,91.012,6.19806318]
[1772669008895,6.36268403,91.047,91.012,6.19806318]
[1772669009494,6.36268403,91.047,90.976,27.13825567]
[1772669009495,6.36268403,91.047,90.982,6.56411357]
[1772669010296,0.07634464,91.024,90.982,6.56411357]
[1772669010796,6.43902867,91.024,90.982,6.56411357]
[1772669011093,6.36268403,91.015,90.97,9.891]
[1772669011600,6.36268403,91.015,90.97,16.45511357]
[1772669012498,0.07753694,91.002,90.971,6.56411357]
[1772669012895,0.07753694,91.002,90.972,9.891]
[1772669013097,0.07753694,91.002,90.971,6.56411357]
[1772669015095,0.07753694,91.002,90.928,19.792]
[1772669015096,0.07753694,91.002,90.962,9.892]
[1772669015597,6.36268403,91.015,90.962,9.892]
[1772669016392,9.888,91.001,90.962,9.892]
[1772669016701,0.07344987,90.998,90.976,9.891]
[1772669016900,0.07344987,90.998,90.963,6.56411357]
[1772669017399,6.36268403,91.015,90.963,6.56411357]
[1772669017598,0.07186188,90.99,90.963,6.56411357]
[1772669018398,6.43454591,90.99,90.932,6.56411357]
[1772669018801,9.891,90.977,90.934,6.56411357]
[1772669019394,0.07504913,90.965,90.942,9.894]
[1772669019596,6.36268403,91.026,90.947,6.56411357]
[1772669020503,6.36268403,91.013,90.944,6.56411357]
[1772669021003,6.36268403,91.013,90.977,0.07177338]
[1772669021300,13.51815654,91.074,90.977,0.07177338]
[1772669021301,6.36268403,91.042,90.977,6.63588695]
[1772669021500,6.36268403,91.042,90.977,6.56411357]
[1772669022000,9.885,91.028,91.0,0.07551536]
[1772669023703,16.24668403,91.036,91.0,0.07551536]
[1772669024102,9.885,91.032,91.0,0.07551536]
[1772669024301,9.885,91.032,90.984,16.45411357]
[1772669024703,9.885,91.032,91.007,0.07735501]
[1772669025604,6.36268403,91.027,90.984,6.56411357]
[1772669025793,6.36268403,91.027,90.97,6.56411357]
[1772669027205,0.07765105,91.008,90.97,6.56411357]
[1772669027402,6.44033508,91.008,90.929,19.792]
[1772669027605,6.44033508,91.008,90.93,6.56411357]
[1772669027998,6.36268403,91.054,90.956,6.56411357]
[1772669028805,0.0820472,91.014,90.974,6.16881256]
[1772669029404,0.0820472,91.014,90.987,6.16881256]
[1772669029909,6.391394,91.041,90.987,6.16881256]
[1772669030408,9.884,91.039,90.992,9.889]
[1772669030708,0.07211848,91.023,90.992,9.889]
[1772669031309,0.07211848,91.023,90.993,6.16881256]
[1772669035217,0.07211848,91.023,90.978,6.16881256]
[1772669035419,9.886,91.022,90.978,6.16881256]
[1772669037320,0.07211848,91.023,90.981,6.16881256]
[1772669037820,6.391394,91.029,90.981,6.16881256]
[1772669038116,6.391394,91.029,90.984,6.16881256]
[1772669038318,0.07701576,91.011,90.984,6.16881256]
[1772669039617,0.07701576,91.011,90.945,6.16881256]
[1772669039819,6.391394,91.055,90.968,6.16881256]
[1772669040119,6.391394,91.052,90.995,6.16881256]
[1772669040515,6.391394,91.091,90.995,6.16881256]
[1772669041319,6.391394,91.091,91.034,0.07772758]
[1772669041520,9.882,91.06,91.034,0.07772758]
[1772669042022,6.391394,91.045,90.996,6.16881256]
[1772669043419,9.885,91.034,90.996,6.16881256]
[1772669043619,0.0715542,91.03,90.996,6.16881256]
[1772669044326,6.391394,91.06,90.996,6.16881256]
[1772669044624,6.391394,91.06,91.005,6.16881256]
[1772669045523,9.882,91.053,91.008,6.16881256]
[1772669045925,9.882,91.053,91.023,0.08106291]
[1772669052836,6.391394,91.045,90.995,6.16881256]
[1772669054537,16.275394,91.036,90.995,6.16881256]
[1772669055033,6.391394,91.032,90.981,6.16881256]
[1772669055233,6.391394,91.032,90.946,6.16881256]
[1772669055532,8.49073171,91.065,90.946,6.16881256]
[1772669055533,6.391394,91.024,90.946,6.16881256]
[1772669055734,6.391394,91.024,90.975,9.891]
[1772669055927,6.391394,91.024,90.976,6.16881256]
[1772669056128,6.391394,91.064,90.976,6.16881256]
[1772669056335,0.0822455,91.009,90.985,6.16881256]
[1772669056536,6.391394,91.043,90.985,6.16881256]
[1772669056834,9.884,91.04,91.011,0.08200968]
[1772669057336,9.882,91.055,91.011,6.25082224]
[1772669057536,6.391394,91.086,91.011,6.25082224]
[1772669057937,6.391394,91.086,91.011,6.16881256]
[1772669058335,6.391394,91.086,91.039,0.0838101]
[1772669059139,5.93335875,91.071,91.039,0.0838101]
[1772669059740,5.93335875,91.071,91.018,15.85991158]
[1772669060138,5.93335875,91.071,91.046,0.07841582]
[1772669060431,5.93335875,91.085,91.046,0.07841582]
[1772669061038,5.93335875,91.085,91.03,5.97391158]
[1772669061429,9.879,91.084,91.056,0.07072377]
[1772669062735,5.93335875,91.076,91.016,5.97391158]
[1772669063034,5.93335875,91.076,90.973,5.97391158]
[1772669063242,9.883,91.044,90.99,5.97391158]
[1772669063735,9.883,91.044,90.993,15.86291158]
[1772669063930,9.883,91.044,90.994,5.97391158]
[1772669064235,0.07499097,91.026,90.994,5.97391158]
[1772669065335,0.07499097,91.026,90.996,5.97391158]
[1772669065839,5.93335875,91.051,90.996,5.97391158]
[1772669066139,5.93335875,91.051,91.006,16.36140017]
[1772669066336,5.93335875,91.051,91.007,6.47440017]
[1772669066739,0.07025898,91.038,91.007,6.47440017]
[1772669067643,0.07025898,91.038,91.008,9.887]
[1772669068443,19.753,91.11,91.015,6.47440017]
[1772669068742,6.51141383,91.108,91.015,6.47440017]
[1772669069536,9.88,91.071,91.021,6.47440017]
[1772669069942,9.88,91.071,91.052,0.08431049]
[1772669070540,16.39241383,91.062,91.021,6.47440017]
[1772669070840,6.51141383,91.061,91.006,6.47440017]
[1772669071138,6.51141383,91.061,90.968,6.47440017]
[1772669071343,6.51141383,91.061,90.973,6.47440017]
[1772669071846,6.51141383,91.061,90.993,6.47440017]
[1772669072043,0.0741846,91.026,90.993,6.47440017]
[1772669072755,6.51141383,91.063,90.993,6.47440017]
[1772669072938,6.51141383,91.063,91.001,6.47440017]
[1772669073437,6.51141383,91.063,90.954,33.96396917]
[1772669073438,6.51141383,91.077,91.019,6.47440017]
[1772669074041,6.51141383,91.077,91.039,0.07063908]
[1772669074542,6.51141383,91.056,90.988,6.47440017]
[1772669075341,6.51141383,91.088,91.003,6.47440017]
[1772669076137,6.51141383,91.088,91.036,0.07864964]
[1772669076540,9.88,91.075,91.036,0.07864964]
[1772669078645,16.39141383,91.075,91.036,0.07864964]
[1772669079438,6.51141383,91.074,91.036,0.07864964]
[1772669081742,6.51141383,91.07,91.015,9.886]
[1772669082048,6.51141383,91.063,91.015,9.886]
[1772669082849,6.51141383,91.054,90.976,6.47440017]
[1772669083646,6.51141383,91.046,90.998,9.888]
[1772669083847,0.07451465,91.024,90.998,9.888]
[1772669084147,0.07451465,91.024,90.976,6.47440017]
[1772669084647,6.51141383,91.023,90.955,6.47440017]
[1772669085448,6.51141383,91.022,90.974,9.891]
[1772669085646,0.07071442,90.998,90.974,9.891]
[1772669086850,0.07071442,90.998,90.922,262.76961753]
[1772669086851,0.07071442,90.998,90.955,9.893]
[1772669087052,6.58212825,90.998,90.955,9.893]
[1772669087359,6.51141383,91.015,90.943,6.47440017]
[1772669087750,6.51141383,91.015,90.96,6.47440017]
[1772669088056,6.51141383,91.015,90.97,0.08007488]
[1772669088565,6.51141383,91.015,90.972,9.891]
[1772669089666,6.51141383,91.015,90.97,0.08007488]
[1772669090869,5.95688991,91.061,90.972,6.11028737]
[1772669091384,5.95688991,91.027,90.973,9.891]
[1772669091970,0.07384992,91.009,90.976,6.11028737]
[1772669092264,5.95688991,91.027,90.976,6.11028737]
[1772669092467,5.95688991,91.027,90.987,9.89]
[1772669092865,5.95688991,91.065,90.988,6.11028737]
[1772669093569,5.95688991,91.065,91.017,0.07406166]
[1772669094066,13.51815654,91.109,90.951,19.787]
[1772669094067,5.95688991,91.035,90.952,6.11028737]
[1772669094968,5.95688991,91.014,90.936,6.11028737]
[1772669095359,5.95688991,91.002,90.936,6.11028737]
[1772669095572,5.95688991,90.998,90.913,6.11028737]
[1772669095965,9.891,90.971,90.913,6.11028737]
[1772669096270,5.95688991,90.964,90.873,6.11028737]
[1772669096661,0.07793925,90.965,90.91,6.11028737]
[1772669096871,5.95688991,90.982,90.91,6.11028737]
[1772669097066,9.892,90.966,90.91,6.11028737]
[1772669097271,0.08379706,90.947,90.91,6.11028737]
[1772669097568,5.95688991,90.985,90.91,6.11028737]
[1772669097768,5.95688991,90.976,90.919,0.07948362]
[1772669098262,5.95688991,90.976,90.852,6.11028737]
[1772669099164,5.95688991,90.965,90.905,0.08359848]
[1772669099366,5.95688991,90.965,90.905,6.19388585]
[1772669099775,5.95688991,90.989,90.917,6.11028737]
[1772669100073,5.95688991,90.989,90.926,0.08262107]
[1772669100374,5.95688991,90.989,90.926,6.19290844]
[1772669100573,5.95688991,90.989,90.926,6.11028737]
[1772669100775,5.95688991,91.052,90.926,6.11028737]
[1772669100969,5.95688991,91.008,90.953,6.11028737]
[1772669101171,5.95688991,91.053,90.953,6.11028737]
[1772669101474,13.51815654,91.105,90.914,19.795]
[1772669101475,5.95688991,91.039,90.98,9.89]
[1772669101973,5.95688991,91.014,90.957,9.893]
[1772669102175,5.95688991,91.014,90.951,6.11028737]
[1772669102574,5.95688991,91.014,90.958,16.00328737]
[1772669102874,5.95688991,91.014,90.959,6.11028737]
[1772669103771,9.887,91.013,90.959,6.11028737]
[1772669104073,153.702,91.072,90.959,6.11028737]
[1772669104074,0.0716406,90.996,90.959,6.11028737]
[1772669104776,5.95688991,91.012,90.959,6.11028737]
[1772669104980,0.07372695,90.987,90.959,6.11028737]
[1772669105279,6.03061686,90.987,90.925,6.11028737]
[1772669105880,5.95688991,90.987,90.925,6.11028737]
[1772669106380,9.891,90.974,90.925,6.11028737]
[1772669106879,9.89,90.985,90.926,9.896]
[1772669107079,5.95688991,90.984,90.925,6.11028737]
[1772669107581,0.0699751,90.965,90.909,6.11028737]
[1772669108179,9.891,90.973,90.909,6.11028737]
[1772669108373,9.891,90.973,90.912,6.11028737]
[1772669108676,0.06951393,90.946,90.912,6.11028737]
[1772669108877,9.89,90.982,90.912,6.11028737]
[1772669108878,5.95688991,90.981,90.933,0.08138473]
[1772669109579,5.95688991,90.997,90.936,6.11028737]
[1772669110483,9.887,91.012,90.957,0.0840788]
[1772669110682,163.83570549,91.076,90.957,0.0840788]
[1772669110683,5.95688991,91.032,90.958,6.11028737]
[1772669111384,5.95688991,91.032,90.986,0.07388101]
[1772669112383,15.84188991,91.032,90.986,0.07388101]
[1772669113484,5.95688991,91.032,90.986,0.07388101]
[1772669113885,5.95688991,91.048,90.986,6.18416838]
[1772669114091,5.95688991,91.048,90.998,9.888]
[1772669114290,5.95688991,91.048,90.986,6.11028737]
[1772669114585,5.95688991,91.048,90.998,9.888]
[1772669114785,5.95688991,91.048,91.014,0.07920233]
[1772669115689,5.95688991,91.038,90.979,9.89]